[Event "Late-Titled-Tuesday-Blitz-April-02-2024"]
[Site "Chess.com"]
[Date "2024.04.02"]
[Round "7"]
[White "GlavkonVVS"]
[Black "lilylg"]
[Result "1-0"]
[WhiteElo "2618"]
[BlackElo "2239"]
[TimeControl "180+1"]
[EndTime "15:15:10 PDT"]
[Termination "GlavkonVVS won on time"]

1. Nf3 {[%clk 0:03:00.9]} 1... d5 {[%clk 0:02:56.5]} 2. c4 {[%clk 0:03:00.9]}
2... e6 {[%clk 0:02:55.3]} 3. d4 {[%clk 0:03:00.4]} 3... c6 {[%clk 0:02:52.9]}
4. Nc3 {[%clk 0:03:00.5]} 4... dxc4 {[%clk 0:02:52.9]} 5. a4 {[%clk 0:03:00.5]}
5... Bb4 {[%clk 0:02:51.7]} 6. e3 {[%clk 0:03:00.5]} 6... b5 {[%clk 0:02:48.8]}
7. Nd2 {[%clk 0:02:56.4]} 7... a5 {[%clk 0:02:25.5]} 8. axb5 {[%clk 0:02:48.7]}
8... Bxc3 {[%clk 0:02:25.4]} 9. bxc3 {[%clk 0:02:49.3]} 9... cxb5 {[%clk
0:02:26]} 10. Rb1 {[%clk 0:02:44.4]} 10... Bd7 {[%clk 0:02:22.8]} 11. Qg4 {[%clk
0:02:40.6]} 11... Qf6 {[%clk 0:02:10.7]} 12. Ba3 {[%clk 0:02:26.5]} 12... Qg6
{[%clk 0:02:03.3]} 13. Qf4 {[%clk 0:02:20.4]} 13... Nc6 {[%clk 0:01:47.8]} 14.
Rxb5 {[%clk 0:02:15.7]} 14... e5 {[%clk 0:00:27.4]} 15. dxe5 {[%clk 0:01:50.6]}
15... Nb4 {[%clk 0:00:26.1]} 16. Bxc4 {[%clk 0:01:33.4]} 16... Nc2+ {[%clk
0:00:24.2]} 17. Ke2 {[%clk 0:01:33.1]} 17... Nxa3 {[%clk 0:00:23.1]} 18. Bd3
{[%clk 0:01:05.5]} 18... Bxb5 {[%clk 0:00:16.5]} 19. c4 {[%clk 0:01:03.5]} 19...
Qe6 {[%clk 0:00:08.8]} 20. cxb5 {[%clk 0:01:02.5]} 20... Ne7 {[%clk 0:00:09.3]}
21. Ra1 {[%clk 0:01:00]} 21... Nd5 {[%clk 0:00:05.1]} 22. Qd4 {[%clk 0:00:58.3]}
22... Rd8 {[%clk 0:00:02.6]} 23. Rxa3 {[%clk 0:00:55.6]} 23... Nb4 {[%clk
0:00:02.8]} 24. Qe4 {[%clk 0:00:52.9]} 24... O-O {[%clk 0:00:02.7]} 25. Bc4
{[%clk 0:00:52.4]} 25... Qb6 {[%clk 0:00:02.6]} 26. e6 {[%clk 0:00:50]} 26...
fxe6 {[%clk 0:00:01.9]} 27. Qxe6+ {[%clk 0:00:48.5]} 27... Qxe6 {[%clk
0:00:02.4]} 28. Bxe6+ {[%clk 0:00:49.1]} 28... Kh8 {[%clk 0:00:03.2]} 29. Rxa5
{[%clk 0:00:48]} 29... Rd6 {[%clk 0:00:03.5]} 30. Bg4 {[%clk 0:00:46.6]} 30...
Nd3 {[%clk 0:00:02.9]} 31. Ne4 {[%clk 0:00:45.8]} 1-0

[Event "Late-Titled-Tuesday-Blitz-April-02-2024"]
[Site "Chess.com"]
[Date "2024.04.02"]
[Round "7"]
[White "Felix-Rose"]
[Black "N_Mullodzhanov"]
[Result "0-1"]
[WhiteElo "2317"]
[BlackElo "2543"]
[TimeControl "180+1"]
[EndTime "15:15:12 PDT"]
[Termination "N_Mullodzhanov won by checkmate"]

1. e4 {[%clk 0:03:00.2]} 1... c6 {[%clk 0:02:59.4]} 2. d4 {[%clk 0:03:00]} 2...
d5 {[%clk 0:02:59.4]} 3. e5 {[%clk 0:02:59.4]} 3... Bf5 {[%clk 0:02:59.2]} 4. h4
{[%clk 0:02:59.4]} 4... h6 {[%clk 0:02:59.2]} 5. g4 {[%clk 0:02:59.1]} 5... Be4
{[%clk 0:02:59.4]} 6. f3 {[%clk 0:02:58.7]} 6... Bh7 {[%clk 0:02:59.7]} 7. e6
{[%clk 0:02:54]} 7... Qd6 {[%clk 0:02:59.7]} 8. exf7+ {[%clk 0:02:43.7]} 8...
Kxf7 {[%clk 0:02:59.3]} 9. Ne2 {[%clk 0:02:41.6]} 9... Nd7 {[%clk 0:02:58.7]}
10. Bf4 {[%clk 0:02:08.8]} 10... Qb4+ {[%clk 0:02:57]} 11. Nd2 {[%clk
0:02:09.2]} 11... Qxb2 {[%clk 0:02:52.9]} 12. Rb1 {[%clk 0:02:09.1]} 12... Qxc2
{[%clk 0:02:50.7]} 13. Qxc2 {[%clk 0:02:09.3]} 13... Bxc2 {[%clk 0:02:50.8]} 14.
Rxb7 {[%clk 0:02:10.2]} 14... Ke8 {[%clk 0:02:43.3]} 15. Nc3 {[%clk 0:01:51.9]}
15... e6 {[%clk 0:02:38.5]} 16. Ba6 {[%clk 0:01:21.3]} 16... Bh7 {[%clk
0:02:15.1]} 17. O-O {[%clk 0:01:13.9]} 17... Be7 {[%clk 0:02:12.1]} 18. Re1
{[%clk 0:01:11]} 18... Nf8 {[%clk 0:01:59.6]} 19. Rc7 {[%clk 0:00:59.9]} 19...
Bxh4 {[%clk 0:01:51.1]} 20. Re2 {[%clk 0:00:49.1]} 20... Ne7 {[%clk 0:01:45.5]}
21. Bb7 {[%clk 0:00:36.2]} 21... Rd8 {[%clk 0:01:43.2]} 22. Nb3 {[%clk
0:00:20.4]} 22... Rd7 {[%clk 0:01:29]} 23. Nc5 {[%clk 0:00:14]} 23... Rxc7
{[%clk 0:01:24.2]} 24. Bxc7 {[%clk 0:00:14.9]} 24... h5 {[%clk 0:01:18.5]} 25.
Bxc6+ {[%clk 0:00:12.5]} 25... Nxc6 {[%clk 0:01:18]} 26. Nxe6 {[%clk 0:00:11.3]}
26... Nxe6 {[%clk 0:01:18.5]} 27. Rxe6+ {[%clk 0:00:11.9]} 27... Kd7 {[%clk
0:01:19.1]} 28. Rd6+ {[%clk 0:00:07.8]} 28... Kxc7 {[%clk 0:01:19.6]} 29. Rxd5
{[%clk 0:00:08.4]} 29... Bf6 {[%clk 0:01:16.7]} 30. Nb5+ {[%clk 0:00:08.1]}
30... Kb6 {[%clk 0:01:16.7]} 31. a4 {[%clk 0:00:08.5]} 31... hxg4 {[%clk
0:01:17.3]} 32. Rd6 {[%clk 0:00:07.8]} 32... Be7 {[%clk 0:01:16.4]} 33. Re6
{[%clk 0:00:07.3]} 33... gxf3 {[%clk 0:01:16.5]} 34. d5 {[%clk 0:00:07.8]} 34...
Bc5+ {[%clk 0:01:17]} 35. Kf1 {[%clk 0:00:07.7]} 35... Bd3+ {[%clk 0:01:17.9]}
36. Ke1 {[%clk 0:00:07.8]} 36... Bb4+ {[%clk 0:01:18.5]} 37. Kd1 {[%clk
0:00:07.1]} 37... Bxb5 {[%clk 0:01:19.4]} 38. axb5 {[%clk 0:00:07.4]} 38... Kxb5
{[%clk 0:01:20]} 39. Rxc6 {[%clk 0:00:07.1]} 39... Rh1+ {[%clk 0:01:20.9]} 40.
Kc2 {[%clk 0:00:07.2]} 40... f2 {[%clk 0:01:21.2]} 41. Rf6 {[%clk 0:00:06.6]}
41... gxf6 {[%clk 0:01:20.1]} 42. d6 {[%clk 0:00:05.5]} 42... f1=Q {[%clk
0:01:20.1]} 43. d7 {[%clk 0:00:05.7]} 43... Qb1# {[%clk 0:01:20.6]} 0-1

[Event "Late-Titled-Tuesday-Blitz-April-02-2024"]
[Site "Chess.com"]
[Date "2024.04.02"]
[Round "7"]
[White "Yushko_Olga"]
[Black "protectiago"]
[Result "1-0"]
[WhiteElo "2237"]
[BlackElo "2060"]
[TimeControl "180+1"]
[EndTime "15:15:17 PDT"]
[Termination "Yushko_Olga won on time"]

1. d4 {[%clk 0:02:59.7]} 1... Nf6 {[%clk 0:02:56.2]} 2. c4 {[%clk 0:03:00.1]}
2... c5 {[%clk 0:02:56.2]} 3. d5 {[%clk 0:02:59.9]} 3... g6 {[%clk 0:02:53.1]}
4. Nc3 {[%clk 0:02:58.7]} 4... e6 {[%clk 0:02:51.9]} 5. e4 {[%clk 0:02:58.7]}
5... exd5 {[%clk 0:02:50.3]} 6. exd5 {[%clk 0:02:58.8]} 6... d6 {[%clk
0:02:38.6]} 7. Bd3 {[%clk 0:02:58]} 7... a6 {[%clk 0:02:35.6]} 8. Nf3 {[%clk
0:02:57.2]} 8... Bg4 {[%clk 0:02:34.1]} 9. O-O {[%clk 0:02:57.3]} 9... Nbd7
{[%clk 0:02:15]} 10. h3 {[%clk 0:02:56.8]} 10... Bxf3 {[%clk 0:02:14.6]} 11.
Qxf3 {[%clk 0:02:57.7]} 11... Bg7 {[%clk 0:02:09.8]} 12. Bf4 {[%clk 0:02:56.1]}
12... Ne5 {[%clk 0:02:02.7]} 13. Bxe5 {[%clk 0:02:55.7]} 13... dxe5 {[%clk
0:02:02.5]} 14. Rfe1 {[%clk 0:02:56.1]} 14... O-O {[%clk 0:01:59]} 15. Rxe5
{[%clk 0:02:54.2]} 15... b5 {[%clk 0:01:44.3]} 16. cxb5 {[%clk 0:02:49.5]} 16...
axb5 {[%clk 0:01:40.9]} 17. Nxb5 {[%clk 0:02:49.4]} 17... Nd7 {[%clk 0:00:48.6]}
18. Re2 {[%clk 0:02:45.3]} 18... Ne5 {[%clk 0:00:48.3]} 19. Qg3 {[%clk
0:02:42.9]} 19... c4 {[%clk 0:00:36.3]} 20. Be4 {[%clk 0:02:37.9]} 20... Rb8
{[%clk 0:00:31.6]} 21. Nc3 {[%clk 0:02:35.5]} 21... h5 {[%clk 0:00:23.7]} 22.
Bf3 {[%clk 0:02:28.2]} 22... Nd3 {[%clk 0:00:22.1]} 23. Ne4 {[%clk 0:02:13.6]}
23... Bxb2 {[%clk 0:00:18.1]} 24. Rd1 {[%clk 0:02:12.2]} 24... Bg7 {[%clk
0:00:16.4]} 25. d6 {[%clk 0:02:08.7]} 25... Ne5 {[%clk 0:00:15.6]} 26. Ng5
{[%clk 0:02:03.6]} 26... Nxf3+ {[%clk 0:00:14.9]} 27. Nxf3 {[%clk 0:02:03.2]}
27... c3 {[%clk 0:00:14.2]} 28. Ne1 {[%clk 0:01:52.5]} 28... Rb2 {[%clk
0:00:14.1]} 29. Rxb2 {[%clk 0:01:47.1]} 29... cxb2 {[%clk 0:00:13.8]} 30. Qb3
{[%clk 0:01:46.4]} 30... Qa5 {[%clk 0:00:12.3]} 31. Nd3 {[%clk 0:01:44.5]} 31...
Ra8 {[%clk 0:00:09.9]} 32. Nxb2 {[%clk 0:01:43.5]} 32... Qxa2 {[%clk 0:00:08.4]}
33. Qxa2 {[%clk 0:01:43.3]} 33... Rxa2 {[%clk 0:00:08.3]} 34. d7 {[%clk
0:01:43.5]} 34... Bf6 {[%clk 0:00:08.3]} 35. d8=Q+ {[%clk 0:01:42.8]} 35... Bxd8
{[%clk 0:00:08.3]} 36. Rxd8+ {[%clk 0:01:43.7]} 36... Kg7 {[%clk 0:00:09.2]} 37.
Nc4 {[%clk 0:01:42.6]} 37... h4 {[%clk 0:00:08.6]} 38. Ne3 {[%clk 0:01:41.7]}
38... g5 {[%clk 0:00:07.9]} 39. Rd5 {[%clk 0:01:40]} 39... f6 {[%clk 0:00:07.7]}
40. Rd6 {[%clk 0:01:39.6]} 40... Ra1+ {[%clk 0:00:05.9]} 41. Kh2 {[%clk
0:01:38.4]} 41... Ra2 {[%clk 0:00:06.5]} 42. Ng4 {[%clk 0:01:38.1]} 42... f5
{[%clk 0:00:06.7]} 43. Rd7+ {[%clk 0:01:38.1]} 43... Kg6 {[%clk 0:00:05.6]} 44.
Ne5+ {[%clk 0:01:35.5]} 44... Kf6 {[%clk 0:00:05.8]} 45. Nd3 {[%clk 0:01:35.6]}
45... Rd2 {[%clk 0:00:04.6]} 46. Kg1 {[%clk 0:01:29.5]} 46... Rd1+ {[%clk
0:00:02.4]} 47. Kh2 {[%clk 0:01:29.3]} 1-0

[Event "Late-Titled-Tuesday-Blitz-April-02-2024"]
[Site "Chess.com"]
[Date "2024.04.02"]
[Round "7"]
[White "TigrVShlyape"]
[Black "Zkid"]
[Result "1-0"]
[WhiteElo "2952"]
[BlackElo "2838"]
[TimeControl "180+1"]
[EndTime "15:15:18 PDT"]
[Termination "TigrVShlyape won by resignation"]

1. e4 {[%clk 0:03:00.9]} 1... c5 {[%clk 0:02:59.7]} 2. Nf3 {[%clk 0:03:00.6]}
2... d6 {[%clk 0:03:00.1]} 3. d4 {[%clk 0:03:00.4]} 3... cxd4 {[%clk 0:03:01]}
4. Nxd4 {[%clk 0:03:00.7]} 4... Nf6 {[%clk 0:03:01.7]} 5. Nc3 {[%clk 0:03:01]}
5... Nc6 {[%clk 0:03:02.3]} 6. Be2 {[%clk 0:02:57.9]} 6... g6 {[%clk 0:03:00.8]}
7. O-O {[%clk 0:02:57.2]} 7... Bg7 {[%clk 0:03:00.9]} 8. Be3 {[%clk 0:02:57.3]}
8... O-O {[%clk 0:03:00.8]} 9. Qd2 {[%clk 0:02:57.9]} 9... a6 {[%clk 0:02:57.1]}
10. a4 {[%clk 0:02:56.2]} 10... Ng4 {[%clk 0:02:53.2]} 11. Bxg4 {[%clk
0:02:55.3]} 11... Bxg4 {[%clk 0:02:54.1]} 12. f3 {[%clk 0:02:52.2]} 12... Bd7
{[%clk 0:02:54.4]} 13. Nd5 {[%clk 0:02:42.7]} 13... e6 {[%clk 0:02:48.7]} 14.
Nxc6 {[%clk 0:02:42]} 14... bxc6 {[%clk 0:02:39.9]} 15. Nb6 {[%clk 0:02:40.7]}
15... Rb8 {[%clk 0:02:39.8]} 16. a5 {[%clk 0:02:37.5]} 16... d5 {[%clk
0:02:36.7]} 17. c3 {[%clk 0:02:32.8]} 17... Bc8 {[%clk 0:02:25.4]} 18. Rad1
{[%clk 0:02:31.4]} 18... Re8 {[%clk 0:02:18.1]} 19. b4 {[%clk 0:02:21.6]} 19...
Qe7 {[%clk 0:02:03.3]} 20. Kh1 {[%clk 0:02:04.2]} 20... dxe4 {[%clk 0:01:59.2]}
21. fxe4 {[%clk 0:02:03.5]} 21... e5 {[%clk 0:01:59.1]} 22. Qe2 {[%clk
0:01:53.3]} 22... Qb7 {[%clk 0:01:55.4]} 23. Nxc8 {[%clk 0:01:19.4]} 23... Rbxc8
{[%clk 0:01:53.2]} 24. Qc4 {[%clk 0:01:16.5]} 24... Re7 {[%clk 0:01:36.9]} 25.
Bc5 {[%clk 0:01:14.1]} 25... Re6 {[%clk 0:01:27]} 26. Bb6 {[%clk 0:01:12.2]}
26... Bf8 {[%clk 0:01:24.7]} 27. Rd3 {[%clk 0:01:10.8]} 27... c5 {[%clk
0:01:05.4]} 28. Qd5 {[%clk 0:01:04.1]} 28... Qc6 {[%clk 0:00:37.3]} 29. Rdf3
{[%clk 0:00:57.8]} 29... Qxd5 {[%clk 0:00:19.6]} 30. exd5 {[%clk 0:00:57.7]}
30... Rd6 {[%clk 0:00:20.2]} 31. Rxf7 {[%clk 0:00:43.9]} 31... cxb4 {[%clk
0:00:18.9]} 32. Rxf8+ {[%clk 0:00:42.2]} 32... Rxf8 {[%clk 0:00:18.6]} 33. Rxf8+
{[%clk 0:00:42.1]} 33... Kxf8 {[%clk 0:00:17.2]} 34. Bc5 {[%clk 0:00:42.7]}
34... Ke7 {[%clk 0:00:05.6]} 35. Bxb4 {[%clk 0:00:42.7]} 1-0

[Event "Late-Titled-Tuesday-Blitz-April-02-2024"]
[Site "Chess.com"]
[Date "2024.04.02"]
[Round "7"]
[White "Doublekk14"]
[Black "prochn"]
[Result "0-1"]
[WhiteElo "2355"]
[BlackElo "2513"]
[TimeControl "180+1"]
[EndTime "15:15:18 PDT"]
[Termination "prochn won on time"]

1. c4 {[%clk 0:03:00.9]} 1... c6 {[%clk 0:02:55.6]} 2. e4 {[%clk 0:03:00.3]}
2... d5 {[%clk 0:02:55.5]} 3. exd5 {[%clk 0:03:00.8]} 3... cxd5 {[%clk 0:02:56]}
4. d4 {[%clk 0:03:01.7]} 4... Nf6 {[%clk 0:02:54.9]} 5. Nf3 {[%clk 0:03:01.6]}
5... Nc6 {[%clk 0:02:55.1]} 6. Nc3 {[%clk 0:03:01.1]} 6... Bg4 {[%clk 0:02:55]}
7. c5 {[%clk 0:02:53.1]} 7... Bxf3 {[%clk 0:02:46.4]} 8. gxf3 {[%clk 0:02:46.7]}
8... g6 {[%clk 0:02:39.8]} 9. Be3 {[%clk 0:02:41.1]} 9... Bg7 {[%clk 0:02:39.8]}
10. f4 {[%clk 0:02:41.1]} 10... O-O {[%clk 0:02:38.5]} 11. Bg2 {[%clk
0:02:31.4]} 11... b6 {[%clk 0:02:37.3]} 12. cxb6 {[%clk 0:02:23.6]} 12... axb6
{[%clk 0:02:36.3]} 13. O-O {[%clk 0:02:11.2]} 13... e6 {[%clk 0:02:36.1]} 14. a3
{[%clk 0:02:07.6]} 14... Na5 {[%clk 0:02:33.1]} 15. b3 {[%clk 0:02:00]} 15... h5
{[%clk 0:02:32.1]} 16. h3 {[%clk 0:01:58.7]} 16... Ne8 {[%clk 0:02:30]} 17. Na4
{[%clk 0:01:57.5]} 17... Nd6 {[%clk 0:02:25.9]} 18. Qd3 {[%clk 0:01:55.3]} 18...
b5 {[%clk 0:01:54.4]} 19. Nc5 {[%clk 0:01:51.8]} 19... Qh4 {[%clk 0:01:41.8]}
20. Rfd1 {[%clk 0:01:18.7]} 20... Rfc8 {[%clk 0:01:40.7]} 21. Qd2 {[%clk
0:01:14.7]} 21... Nf5 {[%clk 0:01:14.8]} 22. Rab1 {[%clk 0:01:00.5]} 22... Nc6
{[%clk 0:01:04.6]} 23. Nd7 {[%clk 0:00:28.8]} 23... Ncxd4 {[%clk 0:00:59]} 24.
Nb6 {[%clk 0:00:26.4]} 24... Rc2 {[%clk 0:00:54.9]} 25. Qd3 {[%clk 0:00:16.8]}
25... Rxa3 {[%clk 0:00:41.1]} 26. Nd7 {[%clk 0:00:05.7]} 26... Nxe3 {[%clk
0:00:35.3]} 27. fxe3 {[%clk 0:00:04]} 27... Qf2+ {[%clk 0:00:34.7]} 0-1

[Event "Late-Titled-Tuesday-Blitz-April-02-2024"]
[Site "Chess.com"]
[Date "2024.04.02"]
[Round "7"]
[White "Kostukov_Alex"]
[Black "Manukyan_Artak"]
[Result "0-1"]
[WhiteElo "2284"]
[BlackElo "2511"]
[TimeControl "180+1"]
[EndTime "15:15:19 PDT"]
[Termination "Manukyan_Artak won on time"]

1. g3 {[%clk 0:02:57.1]} 1... e5 {[%clk 0:02:56.1]} 2. c4 {[%clk 0:02:54.9]}
2... h5 {[%clk 0:02:53.1]} 3. h4 {[%clk 0:02:41.6]} 3... Nh6 {[%clk 0:02:50.7]}
4. Bg2 {[%clk 0:02:41.1]} 4... Nf5 {[%clk 0:02:48.6]} 5. Nc3 {[%clk 0:02:39.8]}
5... Nc6 {[%clk 0:02:40.5]} 6. Nf3 {[%clk 0:02:38.7]} 6... d6 {[%clk 0:02:34.6]}
7. d3 {[%clk 0:02:32.4]} 7... Be7 {[%clk 0:02:31.3]} 8. Nd5 {[%clk 0:02:29.7]}
8... Be6 {[%clk 0:02:28.2]} 9. Nxe7 {[%clk 0:02:12.1]} 9... Qxe7 {[%clk
0:02:25]} 10. Ng5 {[%clk 0:02:05.1]} 10... Bd7 {[%clk 0:02:15.9]} 11. b3 {[%clk
0:01:54.1]} 11... f6 {[%clk 0:02:09.8]} 12. Ne4 {[%clk 0:01:46.5]} 12... O-O-O
{[%clk 0:02:04.7]} 13. Rb1 {[%clk 0:01:37.6]} 13... Rdg8 {[%clk 0:01:49.8]} 14.
b4 {[%clk 0:01:36.3]} 14... Nd8 {[%clk 0:01:35]} 15. b5 {[%clk 0:01:01.8]} 15...
g5 {[%clk 0:01:28.4]} 16. hxg5 {[%clk 0:00:45.8]} 16... fxg5 {[%clk 0:01:28.4]}
17. b6 {[%clk 0:00:28.2]} 17... axb6 {[%clk 0:01:24.3]} 18. a4 {[%clk
0:00:22.5]} 18... Nc6 {[%clk 0:01:17.6]} 19. Bd2 {[%clk 0:00:16.3]} 19... h4
{[%clk 0:01:01.7]} 20. g4 {[%clk 0:00:16.2]} 20... Nfd4 {[%clk 0:00:59.4]} 21.
e3 {[%clk 0:00:14]} 21... Ne6 {[%clk 0:00:54.2]} 22. a5 {[%clk 0:00:12.8]} 22...
Nxa5 {[%clk 0:00:47.5]} 23. Bxa5 {[%clk 0:00:11]} 23... bxa5 {[%clk 0:00:48.4]}
24. Qb3 {[%clk 0:00:07.5]} 24... Bc6 {[%clk 0:00:46.3]} 25. Qa3 {[%clk
0:00:02.3]} 25... a4 {[%clk 0:00:33.9]} 26. Qb4 {[%clk 0:00:02.2]} 26... Nc5
{[%clk 0:00:29.5]} 27. Nxc5 {[%clk 0:00:01.5]} 27... dxc5 {[%clk 0:00:30.4]} 0-1

[Event "Late-Titled-Tuesday-Blitz-April-02-2024"]
[Site "Chess.com"]
[Date "2024.04.02"]
[Round "7"]
[White "burritus"]
[Black "JaackCamel"]
[Result "1-0"]
[WhiteElo "2436"]
[BlackElo "2209"]
[TimeControl "180+1"]
[EndTime "15:15:21 PDT"]
[Termination "burritus won by resignation"]

1. e4 {[%clk 0:03:00.9]} 1... e6 {[%clk 0:02:59.3]} 2. d4 {[%clk 0:03:00.2]}
2... d5 {[%clk 0:02:59.1]} 3. exd5 {[%clk 0:02:58.8]} 3... exd5 {[%clk
0:02:58.8]} 4. Nf3 {[%clk 0:02:56.2]} 4... Nf6 {[%clk 0:02:58.4]} 5. c4 {[%clk
0:02:56.5]} 5... Be7 {[%clk 0:02:55.8]} 6. Nc3 {[%clk 0:02:56.4]} 6... O-O
{[%clk 0:02:54.1]} 7. cxd5 {[%clk 0:02:53.3]} 7... Nxd5 {[%clk 0:02:50.6]} 8.
Bc4 {[%clk 0:02:53.2]} 8... Nb6 {[%clk 0:02:46.6]} 9. Bb3 {[%clk 0:02:51]} 9...
Bg4 {[%clk 0:02:37.1]} 10. O-O {[%clk 0:02:46.3]} 10... N8d7 {[%clk 0:02:30.3]}
11. h3 {[%clk 0:02:44.7]} 11... Bh5 {[%clk 0:02:29.5]} 12. Re1 {[%clk
0:02:44.1]} 12... Nf6 {[%clk 0:02:25.7]} 13. Qd3 {[%clk 0:02:43.9]} 13... Bg6
{[%clk 0:02:23.3]} 14. Qe2 {[%clk 0:02:38.6]} 14... Re8 {[%clk 0:02:19]} 15. Be3
{[%clk 0:02:37.6]} 15... c6 {[%clk 0:02:16.8]} 16. Ne5 {[%clk 0:02:37.4]} 16...
Nbd5 {[%clk 0:02:11]} 17. Rad1 {[%clk 0:02:25.9]} 17... Bf5 {[%clk 0:02:03.8]}
18. Qf3 {[%clk 0:02:23.4]} 18... Be6 {[%clk 0:02:02.9]} 19. Bg5 {[%clk
0:02:21.8]} 19... Rf8 {[%clk 0:01:56.3]} 20. Bc2 {[%clk 0:02:14.4]} 20... h6
{[%clk 0:01:54.2]} 21. Bc1 {[%clk 0:02:11.4]} 21... a5 {[%clk 0:01:27.8]} 22.
Ng6 {[%clk 0:02:06.7]} 22... Re8 {[%clk 0:01:19]} 23. Ne5 {[%clk 0:01:54.3]}
23... Bf8 {[%clk 0:01:12.7]} 24. Qg3 {[%clk 0:01:53.8]} 24... Kh8 {[%clk
0:00:57.1]} 25. a3 {[%clk 0:01:53.3]} 25... Nxc3 {[%clk 0:00:50.7]} 26. bxc3
{[%clk 0:01:51.6]} 26... a4 {[%clk 0:00:32.6]} 27. Rd3 {[%clk 0:01:48.3]} 27...
Bf5 {[%clk 0:00:30.2]} 28. Nxf7+ {[%clk 0:01:43.3]} 28... Kg8 {[%clk 0:00:27.7]}
29. Nxh6+ {[%clk 0:01:40.6]} 29... Kh7 {[%clk 0:00:22.1]} 30. Rxe8 {[%clk
0:01:34.8]} 30... Qxe8 {[%clk 0:00:17.7]} 31. Nxf5 {[%clk 0:00:44.6]} 31... Qe1+
{[%clk 0:00:17.2]} 32. Kh2 {[%clk 0:00:45.1]} 32... Qxc1 {[%clk 0:00:17.5]} 33.
Qh4+ {[%clk 0:00:45.8]} 33... Kg8 {[%clk 0:00:15.4]} 34. Rg3 {[%clk 0:00:46.2]}
34... Qxc2 {[%clk 0:00:13.9]} 35. Nh6+ {[%clk 0:00:46.4]} 35... Kh7 {[%clk
0:00:12.6]} 36. Ng4+ {[%clk 0:00:47]} 36... Kg6 {[%clk 0:00:11.8]} 37. Ne3+
{[%clk 0:00:46.6]} 37... Kf7 {[%clk 0:00:11]} 38. Nxc2 {[%clk 0:00:46.6]} 1-0

[Event "Late-Titled-Tuesday-Blitz-April-02-2024"]
[Site "Chess.com"]
[Date "2024.04.02"]
[Round "7"]
[White "dennisodessa"]
[Black "OlaaLa"]
[Result "0-1"]
[WhiteElo "2546"]
[BlackElo "2390"]
[TimeControl "180+1"]
[EndTime "15:15:21 PDT"]
[Termination "OlaaLa won by resignation"]

1. d4 {[%clk 0:03:00.9]} 1... g6 {[%clk 0:02:53.7]} 2. c4 {[%clk 0:02:59.7]}
2... f5 {[%clk 0:02:53.5]} 3. e4 {[%clk 0:02:57.1]} 3... fxe4 {[%clk 0:02:53.1]}
4. f3 {[%clk 0:02:53.2]} 4... d5 {[%clk 0:02:52.7]} 5. fxe4 {[%clk 0:02:52.2]}
5... dxe4 {[%clk 0:02:51.7]} 6. Nc3 {[%clk 0:02:52]} 6... Bg7 {[%clk 0:02:49.8]}
7. Be3 {[%clk 0:02:50.5]} 7... Nc6 {[%clk 0:02:48.2]} 8. d5 {[%clk 0:02:49.3]}
8... Ne5 {[%clk 0:02:48.2]} 9. Nxe4 {[%clk 0:02:48.5]} 9... Bf5 {[%clk
0:02:47.7]} 10. Ng3 {[%clk 0:02:46.7]} 10... Qd7 {[%clk 0:02:43.1]} 11. Nxf5
{[%clk 0:02:26.4]} 11... Qxf5 {[%clk 0:02:40.1]} 12. Nf3 {[%clk 0:02:27.1]}
12... Qe4 {[%clk 0:02:14.3]} 13. Qb3 {[%clk 0:01:59]} 13... Bh6 {[%clk 0:01:56]}
14. Kd2 {[%clk 0:01:40.6]} 14... Nxf3+ {[%clk 0:01:34]} 15. gxf3 {[%clk
0:01:39.3]} 15... Qxf3 {[%clk 0:01:34.3]} 16. Bxh6 {[%clk 0:01:33.4]} 16... Qxb3
{[%clk 0:01:33.1]} 17. axb3 {[%clk 0:01:32.8]} 17... Nxh6 {[%clk 0:01:33.3]} 18.
Bh3 {[%clk 0:01:29.1]} 18... O-O {[%clk 0:01:31.3]} 19. Rae1 {[%clk 0:01:22.7]}
19... Rf3 {[%clk 0:01:22.4]} 20. Be6+ {[%clk 0:01:09.7]} 20... Kh8 {[%clk
0:01:20.8]} 21. Bd7 {[%clk 0:01:03.6]} 21... Ng8 {[%clk 0:01:15.3]} 22. Rhf1
{[%clk 0:00:56.5]} 22... Raf8 {[%clk 0:01:14.3]} 23. Rxf3 {[%clk 0:00:51.8]}
23... Rxf3 {[%clk 0:01:15.2]} 24. Ra1 {[%clk 0:00:47.2]} 24... a6 {[%clk
0:01:14.1]} 25. Bc8 {[%clk 0:00:42.3]} 25... Rxb3 {[%clk 0:01:12.8]} 26. Kc2
{[%clk 0:00:42.5]} 26... Rb6 {[%clk 0:01:05.6]} 27. Kc3 {[%clk 0:00:40.2]} 27...
Nf6 {[%clk 0:01:04.1]} 28. b4 {[%clk 0:00:33.2]} 28... Ne4+ {[%clk 0:00:52.7]}
29. Kd4 {[%clk 0:00:20.5]} 29... Nd6 {[%clk 0:00:50.8]} 30. c5 {[%clk
0:00:21.2]} 30... Rxb4+ {[%clk 0:00:46.1]} 31. Kc3 {[%clk 0:00:21.4]} 31... Rc4+
{[%clk 0:00:45.9]} 32. Kd3 {[%clk 0:00:21.7]} 32... Rxc5 {[%clk 0:00:46.8]} 33.
Be6 {[%clk 0:00:18.4]} 33... a5 {[%clk 0:00:46.1]} 34. Rf1 {[%clk 0:00:15.9]}
34... Kg7 {[%clk 0:00:45.4]} 35. h4 {[%clk 0:00:15]} 35... h5 {[%clk 0:00:45]}
36. Rb1 {[%clk 0:00:11.2]} 36... b6 {[%clk 0:00:44.7]} 37. Re1 {[%clk
0:00:10.8]} 37... a4 {[%clk 0:00:42.5]} 0-1